[Event "American Cup Open Champions 2025"]
[Site "Saint Louis"]
[Date "2025.03.16"]
[Round "1.4"]
[White "Dominguez Perez, Leinier"]
[Black "So, Wesley"]
[Result "1/2-1/2"]
[Annotator "TA"]
[ECO "C41"]
[WhiteElo "2741"]
[BlackElo "2748"]
[PlyCount "112"]
[EventDate "2025.03.02"]
[EventType "k.o."]
[EventCountry "USA"]
[SourceTitle "playchess.com"]
[Source "ChessBase"]
[SourceQuality "1"]
[TimeControl "180+2"]

{[%evp 17,112,35,48,42,59,36,46,59,66,54,85,66,104,106,173,171,174,169,175,162,366,154,142,159,131,133,145,140,135,129,136,69,93,66,130,133,123,99,104,108,96,0,236,97,109,93,87,96,103,95,93,0,0,0,0,2,2,0,8,0,0,0,8,-9,-8,-12,-12,-12,0,0,0,0,0,0,0,0,0,-95,-95,-95,-95,-95,0,0,0,0,0,0,0,0,0,0,0,0,0,0,0]} 1. e4 {[%emt 0:00:01]} d6 {[%emt 0:00:00]} 2. d4 {[%emt 0:00:01]} Nf6 {[%emt 0:00:01]} 3. Nc3 {[%emt 0:00:02]} e5 {[%emt 0:00:01]} 4. Nf3 {[%emt 0:00:01]} Nbd7 {[%emt 0:00:01]} 5. Bc4 {[%emt 0:00:02]} Be7 {[%emt 0:00:02]} 6. a4 {[%emt 0:00:01]} O-O {[%emt 0:00:02]} 7. O-O {[%emt 0:00:03]} c6 {[%emt 0:00:04]} 8. Re1 {[%emt 0:00:03]} h6 {[%emt 0:00:02] 8...a5 is the recent fashion.} 9. h3 {[%emt 0:00:07]} Re8 {[%emt 0:00:02]} 10. Be3 {[%emt 0:00:17] C41: Philidor Defence.} Bf8 {[%emt 0:00:03]} 11. Ba2 {[%emt 0:00:10][%cal Oa4a5]} exd4 {[%emt 0:00:11]} 12. Bxd4 {[%emt 0:00:01] White is slightly better.} Qc7 {[%emt 0:00:25]} 13. Nh4 {[%emt 0:00:15]} Be7 $146 {[%emt 0:00:38]} (13... Qd8 14. Ng6 a6 15. Qd2 b5 16. axb5 cxb5 17. Nxf8 Rxf8 18. Qf4 Qc7 19. Nd5 Nxd5 20. Bxd5 {0-1 Zhigalko,S (2572)-Yu,Y (2729) Titled Tuesday intern op 14th Mar Early blitz 2023 (3)}) 14. Nf5 {[%emt 0:00:15]} Bf8 {[%emt 0:00:06][%cal Be7f8,Bf8g7,Bg7d4,Bd4e5][%mdl 32] A sharp opening} 15. Qf3 {[%emt 0:00:14] White is much more active.} Ne5 {[%emt 0:01:26] [#]} (15... Kh7 $16) 16. Nxh6+ $1 $18 {[%emt 0:00:32][%mdl 512]} gxh6 {[%emt 0:00:01]} 17. Qxf6 {[%emt 0:00:01] White attacks} Bg7 {[%emt 0:00:01] [#]} 18. Qf4 {[%emt 0:00:02]} Nf3+ $2 {[%emt 0:00:15]} (18... Be6 {is a better defense.} 19. Bxe6 Rxe6) 19. Qxf3 {[%emt 0:00:08]} (19. gxf3 $18 Bxd4 20. Rad1 (20. Qxh6 Bg7 $16)) 19... Bxd4 $16 {[%emt 0:00:01]} 20. Rad1 {[%emt 0:00:05]} Be5 {[%emt 0:00:01]} 21. Qh5 {[%emt 0:00:14]} Be6 {[%emt 0:00:00]} 22. Bxe6 {[%emt 0:00:24]} Rxe6 {[%emt 0:00:01]} 23. Ne2 {[%emt 0:00:18]} Rae8 {[%emt 0:00:03]} 24. Nd4 {[%emt 0:00:09]} (24. c3 $16) 24... Bxd4 $1 $14 25. Rxd4 d5 26. Re3 $16 {[%emt 0:00:06]} dxe4 {[%emt 0:00:08]} 27. Rg3+ {[%emt 0:00:12]} Kf8 {[%emt 0:00:09]} 28. Qc5+ {[%emt 0:00:07]} Qe7 {[%emt 0:00:00]} 29. Qxa7 {[%emt 0:00:03]} (29. Qc3 $16) 29... e3 {[%emt 0:00:02]} (29... c5 $1 $11 30. Rc4 Rd6) 30. fxe3 {[%emt 0:00:02]} (30. Rdg4 $18 {[%csl Gg3][%cal Rg4g8] is the precise move to win.} exf2+ 31. Qxf2) 30... Rxe3 {[%emt 0:00:01]} 31. Rdg4 {[%emt 0:00:01][%csl Gg3][%cal Rg4g8,Bd4g4,Bg4g3,Bg3f3][%mdl 32]} Rxg3 {[%emt 0:00:05]} 32. Rxg3 {[%emt 0:00:01][%mdl 4096] Endgame KQR-KQR. White is a pawn up.} Qe5 {[%emt 0:00:06][%csl LRb2,LRg3] Prevents Qd4.} 33. Rf3 {[%emt 0:00:05]} Qxb2 {[%emt 0:00:03]} 34. Qf2 {[%emt 0:00:02] Repels Re1+} (34. Qc5+ $16 Re7 35. Qd6) 34... Qa1+ $11 {[%emt 0:00:02]} 35. Kh2 {[%emt 0:00:01] Strongly threatening c3.} Qe5+ {[%emt 0:00:01]} 36. Rf4 {[%emt 0:00:04]} Re6 {[%emt 0:00:05]} 37. Qg3 {[%emt 0:00:02]} Ke7 {[%emt 0:00:03]} 38. Qa3+ {[%emt 0:00:02]} Ke8 {[%emt 0:00:01]} 39. Qg3 {[%emt 0:00:03]} Rg6 {[%emt 0:00:01]} 40. Qf2 {[%emt 0:00:02]} Rf6 {[%emt 0:00:01]} 41. g3 {[%emt 0:00:01]} Rxf4 {[%emt 0:00:01]} 42. gxf4 {[%emt 0:00:01] KQ-KQ} Qe4 {[%emt 0:00:00]} 43. a5 {[%emt 0:00:01]} Ke7 {[%emt 0:00:05]} 44. Kg3 {[%emt 0:00:02]} Ke6 {[%emt 0:00:00]} 45. Qb6 {[%emt 0:00:04]} Kf5 {[%emt 0:00:06]} 46. Qc5+ {[%emt 0:00:02]} Kg6 {[%emt 0:00:01]} 47. Qb6 {[%emt 0:00:02]} (47. Qd6+ $11 {remains equal.} Qe6 48. Qd3+ Kf6 49. Qd8+ Kf5 50. Qd3+ Kf6) 47... Qe1+ $17 {[%emt 0:00:03]} ({Don't play} 47... Qxc2 $6 48. Qxb7 Qc3+ 49. Kg2 $11) 48. Kg2 {[%emt 0:00:01]} Qd2+ {[%emt 0:00:02]} 49. Kg3 {[%emt 0:00:01]} Qxc2 {[%emt 0:00:01]} (49... Qc3+ $17 50. Kf2 Qxc2+ 51. Ke3 Qc1+ 52. Ke2 Qxf4 53. Qxb7 Qe4+ 54. Kd2 Qd5+ 55. Ke2 Qxa5 56. Qxc6+ Kg7) 50. Qxb7 $11 {[%emt 0:00:02] The position is equal.} Qc3+ {[%emt 0:00:01]} 51. Kg2 {[%emt 0:00:01]} Qd2+ {[%emt 0:00:04]} 52. Kf3 {[%emt 0:00:04]} Qd3+ {[%emt 0:00:01]} 53. Kf2 {[%emt 0:00:01]} Qd2+ {[%emt 0:00:02]} 54. Kf3 {[%emt 0:00:01]} Qc3+ {[%emt 0:00:01]} 55. Kg2 {[%emt 0:00:04]} Qd2+ {[%emt 0:00:03]} 56. Kf3 {[%emt 0:00:01]} Qc3+ {[%emt 0:00:04] Weighted Error Value: White=0.26 (precise) /Black=0.19 (very precise)   Loses game:     	---       	Black=1      Missed win:     	White=1     	---        Mistake:       	White=5     	Black=4      Inaccurate:     	---       	Black=2      OK:         	White=20    	Black=10     Best:        	White=3     	Black=7      Strong:       	---       	Black=1      Brilliant:      	White=1     	---} 1/2-1/2

[Event "American Cup Open Champions 2025"]
[Site "Saint Louis"]
[Date "2025.03.16"]
[Round "1.4"]
[White "Sevian, Samuel"]
[Black "Aronian, Levon"]
[Result "0-1"]
[Annotator "TA"]
[ECO "B07"]
[WhiteElo "2692"]
[BlackElo "2748"]
[PlyCount "185"]
[EventDate "2025.03.02"]
[EventType "k.o."]
[EventCountry "USA"]
[SourceTitle "playchess.com"]
[Source "ChessBase"]
[SourceQuality "1"]
[TimeControl "180+2"]

{[%evp 12,185,49,42,46,48,43,38,46,36,45,41,55,54,57,37,50,14,30,0,29,33,35,19,35,25,77,29,25,28,78,50,55,10,8,8,13,-4,27,0,0,0,0,-79,-93,-82,0,-120,-140,-141,-107,-118,-91,-175,-153,-234,-235,-439,-243,-502,-507,-504,-493,-562,-615,-614,-618,-597,-614,-583,-571,-645,-658,-622,-595,-554,-462,-431,-396,-402,-386,-394,-393,-443,-440,-412,-116,-121,-97,-116,-100,-113,-93,-109,-104,-156,-150,-179,-134,-146,-139,-146,-146,-146,-146,-146,-146,-160,-158,-158,-134,-210,-146,-146,-146,-146,-146,-146,-145,-146,-146,-164,-146,-146,-144,-385,-145,-174,-174,-173,-81,-145,-146,-300,0,-145,0,-166,0,-145,-142,-161,-145,-157,-149,-172,-142,-158,-145,-145,-145,-154,-147,-204,-204,-222,-105,-146,-59,-277,-224,-226,-216,-509,-85,-253,-131,-542,-540,-490,-490,-557,-472,-403,-328,-312]} 1. e4 {[%emt 0:00:01]} d6 {[%emt 0:00:01]} 2. d4 {[%emt 0:00:02]} Nf6 {[%emt 0:00:01]} 3. Bd3 {[%emt 0:00:12]} e5 {[%emt 0:00:01]} 4. Nf3 {[%emt 0:00:01]} Nbd7 {[%emt 0:00:10]} 5. c3 {[%emt 0:00:02]} Be7 {[%emt 0:00:08]} 6. O-O {[%emt 0:00:02]} O-O {[%emt 0:00:02]} 7. Re1 {[%emt 0:00:01]} c6 {[%emt 0:00:01] B07: Pirc Defence: Miscellaneous Systems.} 8. a4 {[%emt 0:00:01]} Qc7 {[%emt 0:00:05]} 9. Nbd2 {[%emt 0:00:01]} Re8 {[%emt 0:00:05] White is slightly better.} 10. Nf1 {[%emt 0:00:02]} b6 {[%emt 0:00:06]} 11. Ng3 {[%emt 0:00:04]} h6 {[%emt 0:00:05]} 12. h3 {[%emt 0:00:03]} Bf8 {[%emt 0:00:02]} 13. b3 $146 {[%emt 0:00:17]} (13. Nh4 Bb7 14. Nhf5 Rad8 15. f4 a6 16. Bd2 Kh7 17. fxe5 dxe5 18. Qf3 g6 19. Ne3 {0-1 Von Buhrmeister,P-Ketterer,C (2265) Verbandsliga Sued Baden 9697 1996 (9.3)}) 13... Bb7 {[%emt 0:00:28]} 14. Ba3 {[%emt 0:00:01]} Rad8 {[%emt 0:00:39]} 15. Qc2 {[%emt 0:00:01]} Qb8 {[%emt 0:00:14]} 16. Rad1 {[%emt 0:00:03]} a6 {[%emt 0:00:06]} 17. Bb2 {[%emt 0:00:06]} b5 {[%emt 0:00:02]} 18. axb5 {[%emt 0:00:01]} cxb5 {[%emt 0:00:03] [#]} (18... axb5 $11 19. c4 bxc4 20. bxc4 (20. Bxc4 exd4 21. Nxd4 d5 $11) 20... exd4) 19. c4 {[%emt 0:00:15]} ({White should try} 19. d5 $1 $16) 19... Rc8 {[%emt 0:00:05]} 20. Qd2 {[%emt 0:00:01]} Bc6 {[%emt 0:00:15]} (20... bxc4 $11 21. Bxc4 (21. bxc4 exd4 22. Bxd4 Qc7 $11) 21... exd4) 21. Ra1 {[%emt 0:00:07]} bxc4 {[%emt 0:00:08]} 22. Bxc4 {[%emt 0:00:06]} Bb5 {[%emt 0:00:00]} 23. Bxb5 {[%emt 0:00:58]} Qxb5 {[%emt 0:00:02]} 24. Re3 {[%emt 0:00:01]} Qb7 {[%emt 0:00:07]} 25. Ba3 {[%emt 0:00:09]} exd4 {[%emt 0:00:13]} 26. Qxd4 {[%emt 0:00:10]} Nc5 {[%emt 0:00:03]} 27. Rae1 {[%emt 0:00:18]} (27. Nd2 $11) 27... Nxb3 $17 {[%emt 0:00:13]} 28. Qd1 {[%emt 0:00:07]} Na5 {[%emt 0:00:06]} (28... Nc5 $17 {[%cal Rc5e4]} 29. Qd4 Re6) 29. R3e2 {[%emt 0:00:13]} (29. Nd2 $1 $11 {was the only way to keep the balance.}) 29... Nc4 {[%emt 0:00:03]} 30. Bc1 {[%emt 0:00:01]} d5 {[%emt 0:00:08]} 31. e5 {[%emt 0:00:03]} Nd7 {[%emt 0:00:01][%cal Bf6d7,Bd7c5,Bc5e4][%mdl 32]} 32. Nf5 {[%emt 0:00:02]} (32. e6 $17 fxe6 33. Rxe6 Rxe6 34. Rxe6) 32... Nc5 $19 {[%emt 0:00:05]} 33. N3d4 {[%emt 0:00:06]} (33. Bf4 $17) 33... Ne4 {[%emt 0:00:04][%cal Oe4c3]} 34. Qa4 $2 {[%emt 0:00:20]} (34. Rc2) 34... Rxe5 {[%emt 0:00:06]} (34... Nxe5 35. Bd2 $19) (34... Nc3 $142 35. Qa1 Nxe2+ 36. Rxe2 Rxe5 37. Rxe5 Nxe5) 35. Bf4 $2 {[%emt 0:00:01]} (35. Qa1 {is the only way for White.}) 35... Nc3 {[%emt 0:00:03][%csl LRa4,LRe2]} 36. Qc2 {[%emt 0:00:09]} Nxe2+ {[%emt 0:00:01]} 37. Rxe2 {[%emt 0:00:02]} Rxe2 {[%emt 0:00:02]} 38. Qxe2 {[%emt 0:00:01]} Qb1+ {[%emt 0:00:04]} 39. Kh2 {[%emt 0:00:01]} Qe4 {[%emt 0:00:07]} 40. Qg4 {[%emt 0:00:01]} Kh7 {[%emt 0:00:00]} 41. Nf3 {[%emt 0:00:01]} Rc6 {[%emt 0:00:02]} 42. Ng3 {[%emt 0:00:07]} Qe6 {[%emt 0:00:02]} 43. Qh5 {[%emt 0:00:01] And now Ng5+ would win.} Qg6 {[%emt 0:00:01]} 44. Qxd5 {[%emt 0:00:01]} Nb6 {[%emt 0:00:03]} 45. Qa2 {[%emt 0:00:01]} Rc2 {[%emt 0:00:03]} 46. Qxa6 {[%emt 0:00:04]} Rxf2 {[%emt 0:00:02]} 47. Be3 {[%emt 0:00:00]} Rxf3 {[%emt 0:00:02]} (47... Rb2 48. Bd4 Rb3 49. Qa2 $19) 48. gxf3 {[%emt 0:00:03]} Qc2+ $2 {[%emt 0:00:01]} (48... Bd6 $19 49. Bf2 Nd5) 49. Qe2 $17 {[%emt 0:00:01]} Qc7 {[%emt 0:00:01]} 50. Kg2 {[%emt 0:00:04]} Kg8 {[%emt 0:00:02]} 51. Qd3 {[%emt 0:00:02]} Nd7 {[%emt 0:00:02]} 52. Bd4 {[%emt 0:00:01]} Ne5 {[%emt 0:00:02]} 53. Bxe5 {[%emt 0:00:04]} (53. Qc3 $142 Nc6 54. Bf2) 53... Qxe5 {[%emt 0:00:00][%mdl 4096] Endgame KQB-KQN. Black is a pawn up.} 54. Qe2 {[%emt 0:00:00]} Qc7 {[%emt 0:00:01]} 55. Ne4 {[%emt 0:00:01]} Be7 {[%emt 0:00:02]} 56. Qd2 {[%emt 0:00:01]} Qe5 {[%emt 0:00:02]} 57. Qc3 {[%emt 0:00:02]} Qf5 {[%emt 0:00:03]} 58. Qd2 {[%emt 0:00:02]} Qg6+ {[%emt 0:00:01]} 59. Kh1 {[%emt 0:00:03]} f5 {[%emt 0:00:03]} 60. Qd5+ {[%emt 0:00:03]} Kh7 {[%emt 0:00:03]} 61. Nf2 {[%emt 0:00:01]} (61. Nc3 $17) 61... Bh4 {[%emt 0:00:04]} 62. Nd3 {[%emt 0:00:04]} Bg3 {[%emt 0:00:02]} 63. f4 {[%emt 0:00:02]} Qh5 {[%emt 0:00:03]} 64. Kg2 {[%emt 0:00:03]} Bh4 {[%emt 0:00:01]} 65. Qf3 {[%emt 0:00:01]} Qe8 {[%emt 0:00:01]} 66. Ne5 {[%emt 0:00:02]} Bf6 {[%emt 0:00:00]} 67. Nc4 {[%emt 0:00:02]} Bd4 {[%emt 0:00:03]} 68. Nd2 $2 {[%emt 0:00:03]} (68. Qd3 $17 Qc6+ 69. Kg3) 68... Qb5 $2 {[%emt 0:00:04]} (68... Qe3 $19 {( -> ...Qg1#)} 69. Qxe3 Bxe3) 69. Nf1 {[%emt 0:00:03]} Qb2+ {[%emt 0:00:01]} 70. Kh1 {[%emt 0:00:01]} Qc2 {[%emt 0:00:04]} (70... Qb1 $19 71. h4 g6) 71. Ng3 {[%emt 0:00:02]} (71. h4 $142) 71... Qb1+ {[%emt 0:00:03]} 72. Nf1 $2 {[%emt 0:00:01]} (72. Qf1 $17 Qc2 73. h4) 72... Qb5 {[%emt 0:00:03]} (72... Ba7 $19 73. Kg2 Qb2+ 74. Kg3 g6) 73. Kg2 {[%emt 0:00:01]} Qb2+ {[%emt 0:00:02]} 74. Kh1 $1 {[%emt 0:00:01]} Qc2 {[%emt 0:00:00]} 75. Ng3 {[%emt 0:00:01]} Bf2 {[%emt 0:00:01] ( -> ...Qc1+) Black is more active.} 76. Nf1 {[%emt 0:00:04]} Bh4 {[%emt 0:00:01]} 77. Ne3 {[%emt 0:00:01]} Qd3 {[%emt 0:00:02]} 78. Kg2 {[%emt 0:00:01]} Bd8 {[%emt 0:00:05]} 79. Nf1 {[%emt 0:00:03]} Qc2+ {[%emt 0:00:01]} 80. Qf2 {[%emt 0:00:01]} Qc4 {[%emt 0:00:02]} 81. Ne3 {[%emt 0:00:03]} Qe6 {[%emt 0:00:02]} 82. Qf3 {[%emt 0:00:03]} (82. Qc2 $17) 82... Bb6 $19 {[%emt 0:00:01]} 83. Nf1 {[%emt 0:00:04]} Qc4 {[%emt 0:00:01]} (83... Qe1 $19 {is more deadly.} 84. Kh2 Bc7) 84. Ng3 {[%emt 0:00:02][%cal Oh3h4]} Qc1 {[%emt 0:00:04]} (84... Bc7 $17 85. Qf1 Qd5+ (85... Qxf4 86. Qxf4 Bxf4 87. Nxf5 $15) 86. Qf3 Qd2+ 87. Qf2 Qb4 (87... Bxf4 88. Qxd2 Bxd2 89. Nxf5 $15)) 85. Nf1 $2 {[%emt 0:00:01]} (85. h4 $1 $15) 85... Bc7 {[%emt 0:00:01]} 86. Ne3 {[%emt 0:00:02][%cal Of3d5]} Qd2+ {[%emt 0:00:02]} 87. Kh1 $2 {[%emt 0:00:04]} (87. Kf1 {was necessary.}) 87... Qb4 $2 {[%emt 0:00:03]} (87... Bb6 $19 88. Ng2 Bf2) 88. Kg2 $2 {[%emt 0:00:03]} (88. Qd5 $17) 88... Qb2+ {[%emt 0:00:02]} (88... Qxf4 89. Qxf4 Bxf4 90. Nxf5 $15) ({Black should try} 88... Bxf4 $19 {Threatens to win with ...Qd2+.} 89. Nd5 Qb2+ 90. Kg1 Qb1+ 91. Kg2 Bd6) 89. Kh1 $2 {[%emt 0:00:01][%mdl 8192] [#]} (89. Kg3 $17) 89... Bb6 $1 {[%emt 0:00:02]} 90. Nf1 {[%emt 0:00:01]} Qd4 {[%emt 0:00:01]} 91. Qg3 {[%emt 0:00:02] Repels Qg1+} Bc7 {[%emt 0:00:02]} 92. Qe3 {[%emt 0:00:04]} Qc4 {[%emt 0:00:02]} ({Not} 92... Qxf4 93. Qxf4 Bxf4 94. Kg2) 93. Qf3 {[%emt 0:00:03] Weighted Error Value: White=0.43/Black=0.18 (very precise)   Loses game:     	White=4     	---        Missed win:     	---       	Black=3      Mistake:       	White=13    	Black=9      Inaccurate:     	White=6     	Black=3      OK:         	White=12    	Black=28     Best:        	White=6     	Black=4      Strong:       	White=1     	Black=1} 0-1

[Event "American Cup Open Champions 2025"]
[Site "Saint Louis"]
[Date "2025.03.16"]
[Round "1.4"]
[White "Robson, Ray"]
[Black "Caruana, Fabiano"]
[Result "0-1"]
[Annotator "TA"]
[ECO "B35"]
[WhiteElo "2689"]
[BlackElo "2783"]
[PlyCount "110"]
[EventDate "2025.03.02"]
[EventType "k.o."]
[EventCountry "USA"]
[SourceTitle "playchess.com"]
[Source "ChessBase"]
[SourceQuality "1"]
[TimeControl "180+2"]

{[%evp 14,110,18,2,24,24,41,29,23,0,0,0,0,0,0,0,22,3,8,-95,-106,-106,-51,-44,43,38,101,66,74,0,0,0,0,-103,0,0,0,0,0,0,0,0,0,-300,203,-300,206,184,191,126,221,190,192,89,732,127,203,203,188,35,81,0,0,-966,44,0,0,0,0,-193,0,-6103,-6103,-29972,-1508,-29973,-29975,-29975,-29976,-29969,-29968,-29982,-29983,-29988,-29989,-29989,-29990,-29990,-29988,-29989,-29990,-29990,-29991,-29991,-29992,-29992,-29991,-29991,-29992]} 1. e4 {[%emt 0:00:01]} c5 {[%emt 0:00:00]} 2. Nc3 {[%emt 0:00:01]} Nc6 {[%emt 0:00:01]} 3. Nf3 {[%emt 0:00:01]} g6 {[%emt 0:00:01]} 4. d4 {[%emt 0:00:02]} cxd4 {[%emt 0:00:01]} 5. Nxd4 {[%emt 0:00:01]} Bg7 {[%emt 0:00:01]} 6. Be3 {[%emt 0:00:01]} Nf6 {[%emt 0:00:02]} 7. Bc4 {[%emt 0:00:01]} O-O {[%emt 0:00:02]} 8. Bb3 {[%emt 0:00:01]} Re8 {[%emt 0:00:01] B35: Sicilian: Accelerated Dragon with 5 Nc3: main line.} 9. h3 {[%emt 0:00:08]} d6 {[%emt 0:00:01]} 10. Qd2 {[%emt 0:00:01]} Bd7 {[%emt 0:00:03] White has an edge.} 11. O-O-O {[%emt 0:00:07]} Nxd4 {[%emt 0:00:01]} 12. Bxd4 {[%emt 0:00:01] A sharp opening} b5 {[%emt 0:00:01]} 13. Rhe1 $146 {[%emt 0:00:20]} (13. h4 b4 14. Bxf6 exf6 15. Qxd6 bxc3 16. Qxd7 cxb2+ 17. Kb1 Qxd7 18. Rxd7 Rxe4 19. Bd5 Ree8 20. Bxf7+ {1-0 So,W (2769)-Samunenkov,I (2499) Titled Tuesday intern op 04th Jul Early blitz 2023 (9)}) 13... e5 {[%emt 0:00:22]} 14. Be3 {[%emt 0:00:03]} a5 {[%emt 0:00:01]} 15. Qxd6 {[%emt 0:00:50]} a4 $1 {[%emt 0:00:01] [#]} 16. Bxf7+ {[%emt 0:00:02]} Kxf7 $17 {[%emt 0:00:03]} 17. Bg5 {[%emt 0:00:00]} Be6 {[%emt 0:01:17]} (17... Re6 $17 18. Bxf6 Bh6+ 19. Kb1 Rxd6 (19... Qxf6 $2 20. Qxd7+ Qe7 21. Qxb5 $18) 20. Bxd8 Rxd1+ 21. Rxd1 Rxd8 22. Nxb5 Ke7) 18. Nxb5 $15 {[%emt 0:00:10]} a3 {[%emt 0:01:14]} (18... Bxa2 $2 19. Qa3 Qe7 20. Qxa2+ Kf8 21. Re3 $18) (18... Qa5 $15 19. Qc7+ (19. Nc7 $2 Bf8 $19) 19... Re7 20. Qxe5 (20. Nd6+ Kf8 $17) 20... Bxa2 (20... Nd5 21. exd5 Bxe5 22. Rxe5 $16) 21. Nd6+ Kf8) 19. b3 $14 {[%emt 0:00:24]} Qc8 {[%emt 0:00:03]} (19... Qa5 $14 20. Qc6 Rad8) 20. Qxe5 {[%emt 0:00:41]} (20. Nxa3 $2 Qb7 21. Kb1 Nxe4 22. Rxe4 Qxe4 $19) 20... Ra6 {[%emt 0:00:10][%cal Oe6b3]} 21. Nd6+ {[%emt 0:00:20]} (21. Qg3 $16) 21... Rxd6 $1 $11 {[%emt 0:00:01]} 22. Qxd6 {[%emt 0:00:01]} (22. Rxd6 $2 Bxb3 23. Rxf6+ Kg8 $19) 22... Qc3 $36 {[%emt 0:00:06][%mdl 2048] Wards off Re3. Black fights for an advantage.} 23. Qxa3 {[%emt 0:00:19] [#]} (23. Re3 $1 $11 {remains equal.} Qb2+ 24. Kd2) 23... h6 {[%emt 0:00:06] Some like it hot. Black is more active.} (23... Rc8 $1 $17 {[%csl Gc8][%cal Rc3c2]} 24. Qb2 (24. Qa7+ $2 Kg8 $19) 24... Qxb2+ 25. Kxb2 Nxe4+ 26. Kc1 Nxg5) 24. Re3 {[%emt 0:00:09]} Qa1+ {[%emt 0:00:02]} 25. Kd2 {[%emt 0:00:01]} Rd8+ $1 {[%emt 0:00:03]} 26. Rd3 {[%emt 0:00:00]} Rxd3+ (26... Nxe4+ $2 27. Ke1 $18) 27. cxd3 {[%emt 0:00:01]} Nxe4+ $1 {[%emt 0:00:07]} 28. dxe4 $4 {[%emt 0:00:03][%mdl 8192]} (28. Ke1 $1 $11 Qc3+ 29. Bd2 Nxd2 30. Rxd2) 28... Qc3+ $19 {[%emt 0:00:01]} 29. Ke2 {[%emt 0:00:01] Threatening mate with Qe7+.} hxg5 $4 {[%emt 0:00:01][%mdl 8192]} (29... Bc4+ $19 30. bxc4 Qxa3 31. Rd7+ Ke6 (31... Kg8 $2 32. Bd2 $19)) 30. Qc1 {[%emt 0:00:01] and Qxc3 would now be decisive} Qa5 {[%emt 0:00:02]} 31. Qd2 {[%emt 0:00:01]} Qa6+ {[%emt 0:00:00]} (31... Bc3 $16 32. Qc2 g4) 32. Ke1 {[%emt 0:00:05]} Be5 {[%emt 0:00:01]} 33. Qc2 {[%emt 0:00:05]} (33. Qxg5 $6 Bc3+ 34. Rd2 Kg7 $16) (33. g4 $18 {has better winning chances.}) 33... Kg7 $2 {[%emt 0:00:04][%mdl 8192]} (33... g4 $16 34. hxg4 Bxg4) 34. Qe2 $2 {[%emt 0:00:01]} (34. Qc5 $18 {is the precise move to win.} Kf6 35. Qf8+ Bf7 36. Rd5 Bc3+ 37. Kd1) 34... Qa8 {[%emt 0:00:05]} (34... Qc8 $16 {is a better defense.} 35. Qb5 Bf6) 35. Kf1 $18 {[%emt 0:00:00]} g4 {[%emt 0:00:02][%cal Bg5g4,Bg4g3][%mdl 32]} 36. h4 {[%emt 0:00:05]} (36. hxg4 Qh8 37. Qf3 Qh1+ 38. Ke2 Qh4) (36. Qb5 $18 Bf6 37. Qa4 Qxa4 38. bxa4 gxh3 39. gxh3 Bxh3+ 40. Ke1) 36... g3 $14 {[%emt 0:00:01]} 37. Kg1 {[%emt 0:00:03]} ({White should try} 37. Qb5 $16 Bb8 (37... Qxe4 $2 38. Re1 $18) 38. fxg3 Bxg3 39. Qc5) 37... Qa7 $1 $11 {[%emt 0:00:01]} 38. Kf1 $2 {[%emt 0:00:02][%mdl 8192]} (38. Qf3 $11) 38... Qf7 $2 {[%emt 0:00:03]} (38... Bg4 $1 $19 {[%cal Rg4e2]} 39. f3 Bc8) 39. Kg1 {[%emt 0:00:02]} Qf4 {[%emt 0:00:01]} 40. fxg3 {[%emt 0:00:01]} Qxg3 {[%emt 0:00:01] ...Qh2+ is the strong threat.} 41. Qf3 $2 {[%emt 0:00:03] White is on the road to losing.} (41. Qf2 $11 {and White is okay.} Qh2+ 42. Kf1) 41... Qxh4 $2 {[%emt 0:00:01]} ({Black should try} 41... Qh2+ $19 42. Kf2 Qxh4+ 43. g3 Qh2+ 44. Ke3 Qxa2) 42. Kf1 $2 {[%emt 0:00:02][%mdl 8192]} (42. Qe3 $11) 42... Bg4 $19 {[%emt 0:00:02] A strong pair of Bishops.} 43. Qd3 {[%emt 0:00:02]} Qh1+ {[%emt 0:00:02]} 44. Kf2 Qxd1 {[%emt 0:00:01] Black mates.} 45. Qxd1 {[%emt 0:00:03]} Bxd1 {[%emt 0:00:01]} 46. Ke3 {[%emt 0:00:00]} Bc2 {[%emt 0:00:01]} 47. Kd2 {[%emt 0:00:03]} Bxe4 {[%emt 0:00:01]} 48. a4 {[%emt 0:00:01]} Bxg2 {[%emt 0:00:02]} 49. b4 {[%emt 0:00:00]} g5 {[%emt 0:00:02]} 50. b5 {[%emt 0:00:01]} Bc7 {[%emt 0:00:01]} 51. Kc3 {[%emt 0:00:01]} g4 {[%emt 0:00:00]} 52. Kb4 {[%emt 0:00:00]} g3 {[%emt 0:00:01]} 53. a5 {[%emt 0:00:01]} Bf3 {[%emt 0:00:02]} 54. b6 {[%emt 0:00:01]} Bxb6 {[%emt 0:00:01]} 55. axb6 {[%emt 0:00:01]} g2 {[%emt 0:00:00] Weighted Error Value: White=0.80/Black=0.59  Loses game:     	White=4     	Black=1      Missed win:     	White=2     	Black=3      Mistake:       	White=6     	Black=6      Inaccurate:     	White=3     	---        OK:         	White=7     	Black=7      Best:        	White=3     	Black=4      Strong:       	---       	Black=5} 0-1